fUST/lending_fUST_20260510
["ID","MTS","AMOUNT","RATE_DAILY","PERIOD"]
[421933600,1778350255000,-507.39,0.00012328,2]
[421933601,1778350255000,-500.0,0.00012328,2]
[421933604,1778350255000,-500.0,0.00012328,2]
[421933605,1778350255000,-500.0,0.00012328,2]
[421933599,1778350255000,-1603.65,0.00012328,2]
[421933602,1778350255000,-500.0,0.00012328,2]
[421933603,1778350255000,-500.0,0.00012328,2]
[421933608,1778350255000,-470.47,0.00012328,2]
[421933610,1778350255000,-500.0,0.00012328,2]
[421933657,1778350255000,-500.0,0.00012328,2]
[421933613,1778350255000,-500.0,0.00012328,2]
[421933611,1778350255000,-564.16,0.00012328,2]
[421933615,1778350255000,-540.53,0.00012328,2]
[421933609,1778350255000,-1380.44,0.00012328,2]
[421933619,1778350255000,-1644.06,0.00012328,2]
[421933616,1778350255000,-828.93,0.00012328,2]
[421933618,1778350255000,-500.0,0.00012328,2]
[421933620,1778350255000,-187.34,0.00012328,2]
[421933614,1778350255000,-170.11631618,0.00012328,2]
[421933617,1778350255000,-500.0,0.00012328,2]
[421933622,1778350255000,-500.0,0.00012328,2]
[421933621,1778350255000,-1534.14,0.00012328,2]
[421933626,1778350255000,-2905.25,0.00012328,2]
[421933632,1778350255000,-751.03,0.00012328,2]
[421933659,1778350255000,-2852.45,0.00012328,2]
[421933646,1778350255000,-778.06,0.00012328,2]
[421933670,1778350255000,-878.28,0.00012328,2]
[421933690,1778350255000,-250.4,0.000126,2]
[421933693,1778350255000,-500.0,0.00012602,2]
[421933691,1778350255000,-1185.1198,0.00012602,2]
[421933692,1778350255000,-711.9253,0.00012602,2]
[421933699,1778350255000,-500.0,0.00012602,2]
[421933698,1778350255000,-1603.65,0.00012602,2]
[421933709,1778350255000,-500.0,0.00012602,2]
[421933700,1778350255000,-500.0,0.00012602,2]
[421933710,1778350255000,-500.0,0.00012602,2]
[421933705,1778350255000,-500.0,0.00012602,2]
[421933702,1778350255000,-500.0,0.00012602,2]
[421933701,1778350255000,-500.0,0.00012602,2]
[421933704,1778350255000,-733.18,0.00012602,2]
[421933707,1778350255000,-500.0,0.00012602,2]
[421933703,1778350255000,-500.0,0.00012602,2]
[421933708,1778350255000,-564.16,0.00012602,2]
[421933706,1778350255000,-1380.44,0.00012602,2]
[421933711,1778350255000,-540.53,0.00012602,2]
[421933714,1778350255000,-500.0,0.00012602,2]
[421933722,1778350255000,-500.0,0.00012602,2]
[421933713,1778350255000,-500.0,0.00012602,2]
[421933712,1778350255000,-828.93,0.00012602,2]
[421933715,1778350255000,-1644.06,0.00012602,2]
[421933719,1778350255000,-633.83,0.00012602,2]
[421933720,1778350255000,-500.0,0.00012602,2]
[421933718,1778350255000,-518.89,0.00012602,2]
[421933669,1778350255000,-1031.63,0.00012328,2]
[421933716,1778350255000,-1534.14,0.00012602,2]
[421933721,1778350255000,-2905.25,0.00012602,2]
[421933694,1778350255000,-500.0,0.00012602,2]
[421933695,1778350255000,-500.0,0.00012602,2]
[421933717,1778350255000,-495.41,0.00012602,2]
[421933689,1778350255000,-250.0,0.000126,2]
[421933687,1778350255000,-250.0,0.000126,2]
[421933671,1778350255000,-1736.35,0.00012328,2]
[421933658,1778350255000,-635.33,0.00012328,2]
[421933661,1778350255000,-500.0,0.00012328,2]
[421933664,1778350255000,-500.0,0.00012328,2]
[421933663,1778350255000,-552.94,0.00012328,2]
[421933662,1778350255000,-500.0,0.00012328,2]
[421933668,1778350255000,-554.2,0.00012328,2]
[421933667,1778350255000,-1329.8,0.00012328,2]
[421933665,1778350255000,-1147.25,0.00012328,2]
[421933666,1778350255000,-500.0,0.00012328,2]
[421933672,1778350255000,-2306.14,0.00012328,2]
[421933674,1778350255000,-500.0,0.00012328,2]
[421933678,1778350255000,-1545.51,0.00012328,2]
[421933660,1778350255000,-500.0,0.00012328,2]
[421933676,1778350255000,-381.97916047,0.00012328,2]
[421933677,1778350255000,-500.0,0.00012328,2]
[421933685,1778350255000,-169.0743,0.00012465,2]
[421933697,1778350255000,-500.0,0.00012602,2]
[421933696,1778350255000,-500.0,0.00012602,2]
[421933686,1778350255000,-24050.1254747,0.00012542,2]
[421933684,1778350255000,-585.6200042,0.00012448,2]
[421933683,1778350255000,-310.51878293,0.00012446,2]
[421933688,1778350255000,-250.0,0.000126,2]
[421933679,1778350255000,-500.0,0.00012328,2]
[421933680,1778350255000,-2201.0,0.00012439,2]
[421933682,1778350255000,-1412.0,0.00012439,2]
[421933681,1778350255000,-647.0,0.00012439,2]
[421933675,1778350255000,-937.03,0.00012328,2]
[421933673,1778350255000,-1197.6,0.00012328,2]
[421933764,1778350256000,-878.28,0.00012602,2]
[421933762,1778350256000,-554.2,0.00012602,2]
[421933758,1778350256000,-500.0,0.00012602,2]
[421933761,1778350256000,-1329.8,0.00012602,2]
[421933767,1778350256000,-1197.6,0.00012602,2]
[421933768,1778350256000,-500.0,0.00012602,2]
[421933759,1778350256000,-1147.25,0.00012602,2]
[421933756,1778350256000,-500.0,0.00012602,2]
[421933751,1778350256000,-500.0,0.00012602,2]
[421933766,1778350256000,-2306.14,0.00012602,2]
[421933760,1778350256000,-500.0,0.00012602,2]
[421933757,1778350256000,-552.94,0.00012602,2]
[421933771,1778350256000,-1545.51,0.00012602,2]
[421933763,1778350256000,-1031.63,0.00012602,2]
[421933770,1778350256000,-629.75,0.00012602,2]
[421933780,1778350256000,-1930.66328148,0.00012696,2]
[421933781,1778350256000,-1930.66328148,0.00012696,2]
[421933769,1778350256000,-937.03,0.00012602,2]
[421933774,1778350256000,-1930.66328148,0.00012622,2]
[421933773,1778350256000,-1930.66328148,0.00012609,2]
[421933776,1778350256000,-1930.66328148,0.00012674,2]
[421933772,1778350256000,-500.0,0.00012602,2]
[421933779,1778350256000,-1930.66328148,0.00012693,2]
[421933775,1778350256000,-1930.66328148,0.00012657,2]
[421933749,1778350256000,-2939.75,0.00012602,2]
[421933778,1778350256000,-1930.66328148,0.00012687,2]
[421933765,1778350256000,-1736.35,0.00012602,2]
[421933754,1778350256000,-500.0,0.00012602,2]
[421933735,1778350256000,-500.0,0.00012602,2]
[421933752,1778350256000,-635.33,0.00012602,2]
[421933777,1778350256000,-1930.66328148,0.00012683,2]
[421933723,1778350256000,-467.80825144,0.00012602,2]
[421933724,1778350256000,-2958.42,0.00012602,2]
[421933725,1778350256000,-541.32,0.00012602,2]
[421933727,1778350256000,-751.03,0.00012602,2]
[421933731,1778350256000,-836.91,0.00012602,2]
[421933732,1778350256000,-727.35,0.00012602,2]
[421933728,1778350256000,-861.1,0.00012602,2]
[421933726,1778350256000,-500.0,0.00012602,2]
[421933729,1778350256000,-1141.35,0.00012602,2]
[421933730,1778350256000,-561.1,0.00012602,2]
[421933734,1778350256000,-758.71,0.00012602,2]
[421933736,1778350256000,-778.68,0.00012602,2]
[421933733,1778350256000,-1457.95,0.00012602,2]
[421933739,1778350256000,-2234.02,0.00012602,2]
[421933741,1778350256000,-778.06,0.00012602,2]
[421933743,1778350256000,-500.0,0.00012602,2]
[421933737,1778350256000,-3478.96,0.00012602,2]
[421933738,1778350256000,-2240.72,0.00012602,2]
[421933742,1778350256000,-500.0,0.00012602,2]
[421933744,1778350256000,-3820.2,0.00012602,2]
[421933746,1778350256000,-17595.63,0.00012602,2]
[421933748,1778350256000,-500.0,0.00012602,2]
[421933755,1778350256000,-500.0,0.00012602,2]
[421933747,1778350256000,-1880.33,0.00012602,2]
[421933745,1778350256000,-500.0,0.00012602,2]
[421933753,1778350256000,-2852.45,0.00012602,2]
[421933750,1778350256000,-500.0,0.00012602,2]
[421933782,1778350256000,-200.08202113,0.000127,4]
[421933740,1778350256000,-1734.62,0.00012602,2]
[421933784,1778350256000,-1000.0,0.0001271,2]
[421933811,1778350256000,-500.0,0.00012876,2]
[421933819,1778350256000,-633.83,0.00012876,2]
[421933814,1778350256000,-500.0,0.00012876,2]
[421933813,1778350256000,-828.93,0.00012876,2]
[421933822,1778350256000,-500.0,0.00012876,2]
[421933821,1778350256000,-2905.25,0.00012876,2]
[421933823,1778350256000,-2958.42,0.00012876,2]
[421933833,1778350256000,-758.71,0.00012876,2]
[421933824,1778350256000,-541.32,0.00012876,2]
[421933837,1778350256000,-2240.72,0.00012876,2]
[421933832,1778350256000,-1457.95,0.00012876,2]
[421933825,1778350256000,-500.0,0.00012876,2]
[421933826,1778350256000,-751.03,0.00012876,2]
[421933828,1778350256000,-1141.35,0.00012876,2]
[421933827,1778350256000,-861.1,0.00012876,2]
[421933829,1778350256000,-561.1,0.00012876,2]
[421933831,1778350256000,-727.35,0.00012876,2]
[421933835,1778350256000,-778.68,0.00012876,2]
[421933834,1778350256000,-500.0,0.00012876,2]
[421933838,1778350256000,-2234.02,0.00012876,2]
[421933839,1778350256000,-1734.62,0.00012876,2]
[421933836,1778350256000,-3478.96,0.00012876,2]
[421933841,1778350256000,-500.0,0.00012876,2]
[421933840,1778350256000,-778.06,0.00012876,2]
[421933842,1778350256000,-500.0,0.00012876,2]
[421933843,1778350256000,-3820.2,0.00012876,2]
[421933794,1778350256000,-218.48,0.00012876,2]
[421933810,1778350256000,-500.0,0.00012876,2]
[421933818,1778350256000,-518.89,0.00012876,2]
[421933830,1778350256000,-836.91,0.00012876,2]
[421933809,1778350256000,-564.16,0.00012876,2]
[421933792,1778350256000,-1185.1198,0.00012876,2]
[421933820,1778350256000,-500.0,0.00012876,2]
[421933789,1778350256000,-1930.66328148,0.00012799,2]
[421933783,1778350256000,-250.0,0.000127,2]
[421933790,1778350256000,-1930.66328148,0.00012822,2]
[421933788,1778350256000,-1930.66328148,0.00012793,2]
[421933785,1778350256000,-1930.66328148,0.00012721,2]
[421933791,1778350256000,-1930.66328148,0.00012824,2]
[421933787,1778350256000,-183.66664448,0.00012729,2]
[421933793,1778350256000,-711.9253,0.00012876,2]
[421933796,1778350256000,-500.0,0.00012876,2]
[421933801,1778350256000,-500.0,0.00012876,2]
[421933799,1778350256000,-1603.65,0.00012876,2]
[421933798,1778350256000,-500.0,0.00012876,2]
[421933786,1778350256000,-1930.66328148,0.00012729,2]
[421933812,1778350256000,-540.53,0.00012876,2]
[421933815,1778350256000,-500.0,0.00012876,2]
[421933800,1778350256000,-513.84,0.00012876,2]
[421933808,1778350256000,-500.0,0.00012876,2]
[421933817,1778350256000,-1534.14,0.00012876,2]
[421933816,1778350256000,-1644.06,0.00012876,2]
[421933804,1778350256000,-500.0,0.00012876,2]
[421933803,1778350256000,-500.0,0.00012876,2]
[421933797,1778350256000,-500.0,0.00012876,2]
[421933805,1778350256000,-733.18,0.00012876,2]
[421933795,1778350256000,-500.0,0.00012876,2]
[421933806,1778350256000,-500.0,0.00012876,2]
[421933807,1778350256000,-1380.44,0.00012876,2]
[421933802,1778350256000,-500.0,0.00012876,2]
[421933884,1778350257000,-100559.93603106,0.00013,2]
[421933888,1778350257000,-1930.66328148,0.00013066,2]
[421933883,1778350257000,-1930.66328148,0.00012996,2]
[421933881,1778350257000,-1930.66328148,0.00012988,2]
[421933879,1778350257000,-1930.66328148,0.00012983,2]
[421933878,1778350257000,-1930.66328148,0.00012971,2]
[421933876,1778350257000,-1930.66328148,0.00012924,2]
[421933886,1778350257000,-1930.66328148,0.00013043,2]
[421933880,1778350257000,-183.66664448,0.00012983,7]
[421933887,1778350257000,-1930.66328148,0.00013065,2]
[421933895,1778350257000,-151.0000001,0.00013088,2]
[421933882,1778350257000,-1930.66328148,0.00012995,2]
[421933899,1778350257000,-1000.0,0.000131,2]
[421933900,1778350257000,-1000.0,0.000131,2]
[421933894,1778350257000,-151.0,0.00013088,2]
[421933893,1778350257000,-151.0,0.00013088,2]
[421933891,1778350257000,-456.3760811,0.00013088,2]
[421933890,1778350257000,-1930.66328148,0.00013076,2]
[421933889,1778350257000,-1930.66328148,0.00013073,2]
[421933896,1778350257000,-1930.66328148,0.00013091,2]
[421933898,1778350257000,-175.52,0.000131,2]
[421933897,1778350257000,-1930.66328148,0.00013095,2]
[421933912,1778350257000,-1930.66328148,0.00013135,2]
[421933913,1778350257000,-1185.1198,0.0001315,2]
[421933901,1778350257000,-1000.0,0.000131,2]
[421933902,1778350257000,-1000.0,0.000131,2]
[421933911,1778350257000,-1930.66328148,0.00013132,2]
[421933874,1778350257000,-2966.32188482,0.000129,2]
[421933892,1778350257000,-325.7699083,0.00013088,2]
[421933875,1778350257000,-2966.32188482,0.000129,2]
[421933844,1778350257000,-500.0,0.00012876,2]
[421933869,1778350257000,-1545.51,0.00012876,2]
[421933845,1778350257000,-17595.63,0.00012876,2]
[421933903,1778350257000,-1000.0,0.000131,2]
[421933846,1778350257000,-1880.33,0.00012876,2]
[421933848,1778350257000,-2939.75,0.00012876,2]
[421933858,1778350257000,-1147.25,0.00012876,2]
[421933850,1778350257000,-484.72,0.00012876,2]
[421933849,1778350257000,-500.0,0.00012876,2]
[421933847,1778350257000,-217.0,0.00012876,2]
[421933860,1778350257000,-1329.8,0.00012876,2]
[421933859,1778350257000,-500.0,0.00012876,2]
[421933853,1778350257000,-500.0,0.00012876,2]
[421933857,1778350257000,-500.0,0.00012876,2]
[421933852,1778350257000,-2852.45,0.00012876,2]
[421933851,1778350257000,-635.33,0.00012876,2]
[421933854,1778350257000,-500.0,0.00012876,2]
[421933855,1778350257000,-500.0,0.00012876,2]
[421933856,1778350257000,-552.94,0.00012876,2]
[421933862,1778350257000,-1031.63,0.00012876,2]
[421933872,1778350257000,-2966.32188482,0.000129,2]
[421933861,1778350257000,-554.2,0.00012876,2]
[421933873,1778350257000,-2966.32188482,0.000129,2]
[421933863,1778350257000,-878.28,0.00012876,2]
[421933864,1778350257000,-1736.35,0.00012876,2]
[421933868,1778350257000,-937.03,0.00012876,2]
[421933871,1778350257000,-1930.66328148,0.00012884,2]
[421933865,1778350257000,-2306.14,0.00012876,2]
[421933867,1778350257000,-500.0,0.00012876,2]
[421933866,1778350257000,-1197.6,0.00012876,2]
[421933870,1778350257000,-500.0,0.00012876,2]
[421933885,1778350257000,-300.0,0.00013,2]
[421933905,1778350257000,-1000.0,0.000131,2]
[421933877,1778350257000,-24056.32238119,0.00012939,2]
[421933906,1778350257000,-1000.0,0.000131,2]
[421933943,1778350257000,-541.32,0.0001315,2]
[421933945,1778350257000,-751.03,0.0001315,2]
[421933947,1778350257000,-1141.35,0.0001315,2]
[421933948,1778350257000,-561.1,0.0001315,2]
[421933949,1778350257000,-836.91,0.0001315,2]
[421933951,1778350257000,-1457.95,0.0001315,2]
[421933950,1778350257000,-727.35,0.0001315,2]
[421933940,1778350257000,-2905.25,0.0001315,2]
[421933952,1778350257000,-758.71,0.0001315,2]
[421933963,1778350257000,-500.0,0.0001315,2]
[421933964,1778350257000,-17595.63,0.0001315,2]
[421933953,1778350257000,-500.0,0.0001315,2]
[421933955,1778350257000,-3478.96,0.0001315,2]
[421933954,1778350257000,-778.68,0.0001315,2]
[421933962,1778350257000,-3820.2,0.0001315,2]
[421933959,1778350257000,-778.06,0.0001315,2]
[421933958,1778350257000,-1734.62,0.0001315,2]
[421933957,1778350257000,-2234.02,0.0001315,2]
[421933961,1778350257000,-500.0,0.0001315,2]
[421933960,1778350257000,-500.0,0.0001315,2]
[421933966,1778350257000,-2939.75,0.0001315,2]
[421933965,1778350257000,-1880.33,0.0001315,2]
[421933967,1778350257000,-500.0,0.0001315,2]
[421933969,1778350257000,-2852.45,0.0001315,2]
[421933968,1778350257000,-635.33,0.0001315,2]
[421933970,1778350257000,-500.0,0.0001315,2]
[421933972,1778350257000,-398.35242074,0.0001315,2]
[421933971,1778350257000,-500.0,0.0001315,2]
[421933904,1778350257000,-1000.0,0.000131,2]
[421933942,1778350257000,-2958.42,0.0001315,2]
[421933944,1778350257000,-500.0,0.0001315,2]
[421933956,1778350257000,-2240.72,0.0001315,2]
[421933941,1778350257000,-500.0,0.0001315,2]
[421933910,1778350257000,-1930.66328148,0.00013111,2]
[421933908,1778350257000,-1000.0,0.000131,2]
[421933907,1778350257000,-1000.0,0.000131,2]
[421933909,1778350257000,-680.590022,0.000131,2]
[421933946,1778350257000,-861.1,0.0001315,2]
[421933914,1778350257000,-711.9253,0.0001315,2]
[421933920,1778350257000,-185.6,0.0001315,2]
[421933916,1778350257000,-500.0,0.0001315,2]
[421933917,1778350257000,-500.0,0.0001315,2]
[421933919,1778350257000,-1603.65,0.0001315,2]
[421933925,1778350257000,-547.38,0.0001315,2]
[421933923,1778350257000,-500.0,0.0001315,2]
[421933927,1778350257000,-500.0,0.0001315,2]
[421933922,1778350257000,-500.0,0.0001315,2]
[421933915,1778350257000,-472.62639023,0.0001315,2]
[421933918,1778350257000,-500.0,0.0001315,2]
[421933924,1778350257000,-733.18,0.0001315,2]
[421933926,1778350257000,-1380.44,0.0001315,2]
[421933938,1778350257000,-633.83,0.0001315,2]
[421933937,1778350257000,-518.89,0.0001315,2]
[421933934,1778350257000,-500.0,0.0001315,2]
[421933931,1778350257000,-540.53,0.0001315,2]
[421933930,1778350257000,-500.0,0.0001315,2]
[421933933,1778350257000,-500.0,0.0001315,2]
[421933936,1778350257000,-1534.14,0.0001315,2]
[421933939,1778350257000,-500.0,0.0001315,2]
[421933932,1778350257000,-828.93,0.0001315,2]
[421933929,1778350257000,-500.0,0.0001315,2]
[421933928,1778350257000,-564.16,0.0001315,2]
[421933935,1778350257000,-1644.06,0.0001315,2]
[421933921,1778350257000,-500.0,0.0001315,2]
[421933981,1778350258000,-878.28,0.0001315,2]
[421933993,1778350258000,-1930.66328148,0.000132,2]
[421933991,1778350258000,-144.35220449,0.0001319,2]
[421933985,1778350258000,-500.0,0.0001315,2]
[421933990,1778350258000,-1930.66328148,0.00013157,2]
[421933989,1778350258000,-1930.66328148,0.00013152,2]
[421933988,1778350258000,-500.0,0.0001315,2]
[421933987,1778350258000,-1545.51,0.0001315,2]
[421933992,1778350258000,-1786.31107699,0.0001319,2]
[421933986,1778350258000,-937.03,0.0001315,2]
[421933977,1778350258000,-500.0,0.0001315,2]
[421933982,1778350258000,-1736.35,0.0001315,2]
[421933984,1778350258000,-1197.6,0.0001315,2]
[421933980,1778350258000,-1031.63,0.0001315,2]
[421933976,1778350258000,-1147.25,0.0001315,2]
[421933979,1778350258000,-554.2,0.0001315,2]
[421933975,1778350258000,-500.0,0.0001315,2]
[421933978,1778350258000,-1329.8,0.0001315,2]
[421933974,1778350258000,-552.94,0.0001315,2]
[421933973,1778350258000,-101.64757926,0.0001315,2]
[421933995,1778350258000,-1193.13076108,0.00013225,2]
[421933983,1778350258000,-2306.14,0.0001315,2]
[421933996,1778350258000,-5000.0,9.339e-05,2]
[421933994,1778350258000,-5000.0,0.0001322,2]
[421934000,1778350258000,-500.0,0.00010958,2]
[421934017,1778350258000,-737.5325204,0.00013225,2]
[421934019,1778350258000,-1930.66328148,0.00013236,2]
[421934016,1778350258000,-830.32,0.0001315,2]
[421934011,1778350258000,-500.0,0.00012602,2]
[421934020,1778350258000,-1394.56682696,0.00013239,2]
[421934013,1778350258000,-500.0,0.00012876,2]
[421934015,1778350258000,-500.0,0.0001315,2]
[421934009,1778350258000,-500.0,0.00012328,2]
[421934012,1778350258000,-830.32,0.00012602,2]
[421934018,1778350258000,-1930.66328148,0.00013231,2]
[421934014,1778350258000,-830.32,0.00012876,2]
[421934005,1778350258000,-500.0,0.0001178,2]
[421934010,1778350258000,-830.32,0.00012328,2]
[421933997,1778350258000,-1202.38765531,0.00010747,2]
[421933999,1778350258000,-830.32,0.00010958,2]
[421934001,1778350258000,-500.0,0.00011232,2]
[421934003,1778350258000,-500.0,0.00011506,2]
[421933998,1778350258000,-500.0,0.00010958,2]
[421934004,1778350258000,-830.32,0.00011506,2]
[421934006,1778350258000,-830.32,0.0001178,2]
[421934008,1778350258000,-830.32,0.00012054,2]
[421934007,1778350258000,-500.0,0.00012054,2]
[421934002,1778350258000,-830.32,0.00011232,2]
[421934021,1778350259000,-500.0,0.00010958,2]
[421934022,1778350259000,-500.0,0.00010958,2]
[421934023,1778350259000,-500.0,0.00010958,2]
[421934025,1778350259000,-536.09645452,0.00013239,2]
[421934024,1778350259000,-500.0,0.00011232,2]
[421934026,1778350259000,-4730.0,0.00013268,2]
[421934027,1778350259000,-783.0,0.00013268,2]
[421934030,1778350259000,-1930.66328148,0.00013276,2]
[421934029,1778350259000,-312.0,0.00013268,2]
[421934028,1778350259000,-301.0,0.00013268,2]
[421934033,1778350259000,-151.6832552,0.00013313,2]
[421934035,1778350259000,-1273.88949674,0.00013314,2]
[421934034,1778350259000,-151.0,0.00013313,2]
[421934036,1778350259000,-656.77378474,0.00013314,2]
[421934037,1778350259000,-1187.52621526,0.00013324,2]
[421934031,1778350259000,-325.7824685,0.00013313,2]
[421934032,1778350259000,-151.0,0.00013313,2]
[421934038,1778350348000,1772.69,0.00019178,120]
[421934042,1778351028000,176.747651,9.028e-05,120]
[421934133,1778351431000,-710.38739228,7.855e-05,2]
[421934134,1778351431000,-296.64767152,7.855e-05,2]
[421934136,1778351431000,-481.82302771,7.872e-05,2]
[421934132,1778351431000,-5000.0,7.793e-05,2]
[421934135,1778351431000,-127.27315677,7.872e-05,2]
[421934204,1778351438000,-3097.44662417,0.00010175,2]
[421934180,1778351438000,-300.0,8.877e-05,2]
[421934182,1778351438000,-300.0,8.877e-05,2]
[421934192,1778351438000,-2201.0,9.806e-05,2]
[421934193,1778351438000,-741.0,9.806e-05,2]
[421934194,1778351438000,-185.0,9.806e-05,2]
[421934181,1778351438000,-300.0,8.877e-05,2]
[421934183,1778351438000,-300.0,8.877e-05,2]
[421934188,1778351438000,-587.0,9.621e-05,2]
[421934191,1778351438000,-1412.0,9.806e-05,2]
[421934184,1778351438000,-300.0,8.877e-05,2]
[421934185,1778351438000,-2870.12666804,8.881e-05,2]
[421934187,1778351438000,-3037.89557353,9.528e-05,2]
[421934189,1778351438000,-537.6845,9.801e-05,2]
[421934186,1778351438000,-176.747651,9.028e-05,2]
[421934195,1778351438000,-337.029,9.806e-05,2]
[421934197,1778351438000,-277.02554839,9.856e-05,2]
[421934199,1778351438000,-160.0,9.961e-05,2]
[421934205,1778351438000,-3589.98921964,0.00010822,2]
[421934179,1778351438000,-300.0,8.877e-05,2]
[421934190,1778351438000,-647.0,9.806e-05,2]
[421934177,1778351438000,-300.0,8.877e-05,2]
[421934169,1778351438000,-420.0,8.746e-05,2]
[421934200,1778351438000,-161.5993154,9.961e-05,2]
[421934159,1778351438000,-300.0,7.951e-05,2]
[421934158,1778351438000,-4390.90381552,7.872e-05,2]
[421934160,1778351438000,-309.09618448,7.952e-05,2]
[421934161,1778351438000,-1876.90381552,7.952e-05,2]
[421934163,1778351438000,-408.61928364,7.992e-05,2]
[421934162,1778351438000,-2052.24084398,7.955e-05,2]
[421934164,1778351438000,-2198.39618035,8.055e-05,2]
[421934167,1778351438000,-2701.54204253,8.355e-05,2]
[421934166,1778351438000,-2533.82675511,8.255e-05,2]
[421934165,1778351438000,-2366.11146768,8.155e-05,2]
[421934168,1778351438000,-3402.91417089,8.355e-05,2]
[421934172,1778351438000,-300.0,8.877e-05,2]
[421934171,1778351438000,-300.0,8.877e-05,2]
[421934175,1778351438000,-300.0,8.877e-05,2]
[421934178,1778351438000,-300.0,8.877e-05,2]
[421934174,1778351438000,-300.0,8.877e-05,2]
[421934176,1778351438000,-300.0,8.877e-05,2]
[421934173,1778351438000,-300.0,8.877e-05,2]
[421934170,1778351438000,-300.0,8.877e-05,2]
[421934203,1778351438000,-600.0,0.0001016,2]
[421934238,1778351438000,-500.0,0.00010958,2]
[421934198,1778351438000,-160.0,9.961e-05,2]
[421934228,1778351438000,-500.0,0.00010958,2]
[421934229,1778351438000,-500.0,0.00010958,2]
[421934230,1778351438000,-500.0,0.00010958,2]
[421934232,1778351438000,-521.65388447,0.00010958,2]
[421934234,1778351438000,-500.0,0.00010958,2]
[421934231,1778351438000,-500.0,0.00010958,2]
[421934233,1778351438000,-500.0,0.00010958,2]
[421934247,1778351438000,-500.0,0.00010958,2]
[421934236,1778351438000,-500.0,0.00010958,2]
[421934237,1778351438000,-500.0,0.00010958,2]
[421934245,1778351438000,-500.0,0.00010958,2]
[421934246,1778351438000,-500.0,0.00010958,2]
[421934243,1778351438000,-500.0,0.00010958,2]
[421934239,1778351438000,-500.0,0.00010958,2]
[421934241,1778351438000,-862.77,0.00010958,2]
[421934240,1778351438000,-500.0,0.00010958,2]
[421934242,1778351438000,-500.0,0.00010958,2]
[421934244,1778351438000,-500.0,0.00010958,2]
[421934201,1778351438000,-160.0,9.961e-05,2]
[421934227,1778351438000,-500.0,0.00010958,2]
[421934224,1778351438000,-500.0,0.00010958,2]
[421934235,1778351438000,-500.0,0.00010958,2]
[421934225,1778351438000,-500.0,0.00010958,2]
[421934222,1778351438000,-500.0,0.00010958,2]
[421934196,1778351438000,-495.162,9.806e-05,2]
[421934202,1778351438000,-482.1707547,9.992e-05,2]
[421934207,1778351438000,-389.6663191,0.00010941,2]
[421934206,1778351438000,-220.2009867,0.00010858,2]
[421934218,1778351438000,-500.0,0.00010958,2]
[421934220,1778351438000,-500.0,0.00010958,2]
[421934210,1778351438000,-500.0,0.00010958,2]
[421934208,1778351438000,-100000.0,0.00010942,2]
[421934217,1778351438000,-500.0,0.00010958,2]
[421934209,1778351438000,-500.0,0.00010958,2]
[421934219,1778351438000,-337.61560647,0.00010958,2]
[421934212,1778351438000,-500.0,0.00010958,2]
[421934215,1778351438000,-500.0,0.00010958,2]
[421934214,1778351438000,-500.0,0.00010958,2]
[421934213,1778351438000,-500.0,0.00010958,2]
[421934216,1778351438000,-500.0,0.00010958,2]
[421934221,1778351438000,-500.0,0.00010958,2]
[421934223,1778351438000,-500.0,0.00010958,2]